[Event "Titled Tuesday Blitz August 16 Early 2022"]
[White "Delorme, Axel"]
[Black "Leiva, Gianmarco"]
[WhiteFideId "632023"]
[BlackFideId "3804399"]
[WhiteElo "2474"]
[BlackElo "2323"]
[Result "0-1"]
[Round "05"]
[TimeControl "180+2"]
[Date "2022.08.18"]
[WhiteClock "0:00:00"]
[BlackClock "0:00:00"]

1. d4 {[%clk 0:00:00]}  Nf6 {[%clk 0:00:00]} 2. Nf3 {[%clk 0:00:00]}  e6 {[%clk 0:00:00]} 3. c4 {[%clk 0:00:00]}  d5 {[%clk 0:00:00]} 4. Nc3 {[%clk 0:00:00]}  a6 {[%clk 0:00:00]} 5. cxd5 {[%clk 0:00:00]}  exd5 {[%clk 0:00:00]} 6. Bg5 {[%clk 0:00:00]}  Be6 {[%clk 0:00:00]} 7. e3 {[%clk 0:00:00]}  Nbd7 {[%clk 0:00:00]} 8. Bd3 {[%clk 0:00:00]}  Bd6 {[%clk 0:00:00]} 9. Bf4 {[%clk 0:00:00]}  Be7 {[%clk 0:00:00]} 10. Ne5 {[%clk 0:00:00]}  Nxe5 {[%clk 0:00:00]} 11. Bxe5 {[%clk 0:00:00]}  c6 {[%clk 0:00:00]} 12. O-O {[%clk 0:00:00]}  O-O {[%clk 0:00:00]} 13. Ne2 {[%clk 0:00:00]}  Bg4 {[%clk 0:00:00]} 14. h3 {[%clk 0:00:00]}  Bh5 {[%clk 0:00:00]} 15. Qc2 {[%clk 0:00:00]}  Bg6 {[%clk 0:00:00]} 16. Bxg6 {[%clk 0:00:00]}  hxg6 {[%clk 0:00:00]} 17. Bxf6 {[%clk 0:00:00]}  gxf6 {[%clk 0:00:00]} 18. Nf4 {[%clk 0:00:00]}  Kg7 {[%clk 0:00:00]} 19. Nd3 {[%clk 0:00:00]}  Bd6 {[%clk 0:00:00]} 20. Nc5 {[%clk 0:00:00]}  Qe7 {[%clk 0:00:00]} 21. Rac1 {[%clk 0:00:00]}  f5 {[%clk 0:00:00]} 22. Nd3 {[%clk 0:00:00]}  Rh8 {[%clk 0:00:00]} 23. Rfe1 {[%clk 0:00:00]}  Qg5 {[%clk 0:00:00]} 24. f4 {[%clk 0:00:00]}  Qg3 {[%clk 0:00:00]} 25. Kf1 {[%clk 0:00:00]}  Qh4 {[%clk 0:00:00]} 26. Qf2 {[%clk 0:00:00]}  Qe7 {[%clk 0:00:00]} 27. Ne5 {[%clk 0:00:00]}  f6 {[%clk 0:00:00]} 28. Nd3 {[%clk 0:00:00]}  Qe4 {[%clk 0:00:00]} 29. Rcd1 {[%clk 0:00:00]}  Rae8 {[%clk 0:00:00]} 30. Qf3 {[%clk 0:00:00]}  Qe7 {[%clk 0:00:00]} 31. g4 {[%clk 0:00:00]}  Qe4 {[%clk 0:00:00]} 32. Qxe4 {[%clk 0:00:00]}  fxe4 {[%clk 0:00:00]} 33. Nf2 {[%clk 0:00:00]}  g5 {[%clk 0:00:00]} 34. fxg5 {[%clk 0:00:00]}  fxg5 {[%clk 0:00:00]} 35. Kg2 {[%clk 0:00:00]}  Ref8 {[%clk 0:00:00]} 36. h4 {[%clk 0:00:00]}  Rxh4 {[%clk 0:00:00]} 37. Rh1 {[%clk 0:00:00]}  Rf3 {[%clk 0:00:00]} 38. Rxh4 {[%clk 0:00:00]}  gxh4 {[%clk 0:00:00]} 39. Nh1 {[%clk 0:00:00]}  h3+ {[%clk 0:00:00]} 40. Kg1 {[%clk 0:00:00]}  Rxe3 {[%clk 0:00:00]} 41. Rf1 {[%clk 0:00:00]}  Re2 {[%clk 0:00:00]} 42. Rf5 {[%clk 0:00:00]}  Re1+ {[%clk 0:00:00]} 43. Rf1 {[%clk 0:00:00]}  Bh2+ {[%clk 0:00:00]} 44. Kxh2 {[%clk 0:00:00]}  Rxf1 {[%clk 0:00:00]} 45. Ng3 {[%clk 0:00:00]}  Rf2+ {[%clk 0:00:00]} 46. Kxh3 {[%clk 0:00:00]}  e3 {[%clk 0:00:00]} 47. g5 {[%clk 0:00:00]}  e2 {[%clk 0:00:00]} 0-1


[Site "https://www.chess.com"]

[Event "Titled Tuesday Blitz August 16 Early 2022"]
[White "Djokic, Mihailo"]
[Black "Padmini, Rout"]
[WhiteFideId "976440"]
[BlackFideId "5029295"]
[WhiteElo "2246"]
[BlackElo "2181"]
[Result "1-0"]
[Round "05"]
[TimeControl "180+2"]
[Date "2022.08.18"]
[WhiteClock "0:00:00"]
[BlackClock "0:00:00"]

1. e4 {[%clk 0:00:00]}  c5 {[%clk 0:00:00]} 2. Nf3 {[%clk 0:00:00]}  Nc6 {[%clk 0:00:00]} 3. d4 {[%clk 0:00:00]}  cxd4 {[%clk 0:00:00]} 4. Nxd4 {[%clk 0:00:00]}  Nf6 {[%clk 0:00:00]} 5. Nc3 {[%clk 0:00:00]}  e5 {[%clk 0:00:00]} 6. Ndb5 {[%clk 0:00:00]}  d6 {[%clk 0:00:00]} 7. Bg5 {[%clk 0:00:00]}  a6 {[%clk 0:00:00]} 8. Bxf6 {[%clk 0:00:00]}  gxf6 {[%clk 0:00:00]} 9. Na3 {[%clk 0:00:00]}  b5 {[%clk 0:00:00]} 10. Nd5 {[%clk 0:00:00]}  f5 {[%clk 0:00:00]} 11. c3 {[%clk 0:00:00]}  Bg7 {[%clk 0:00:00]} 12. exf5 {[%clk 0:00:00]}  Bxf5 {[%clk 0:00:00]} 13. Nc2 {[%clk 0:00:00]}  O-O {[%clk 0:00:00]} 14. Nce3 {[%clk 0:00:00]}  Be6 {[%clk 0:00:00]} 15. Bd3 {[%clk 0:00:00]}  f5 {[%clk 0:00:00]} 16. Qh5 {[%clk 0:00:00]}  e4 {[%clk 0:00:00]} 17. Bc2 {[%clk 0:00:00]}  Ne7 {[%clk 0:00:00]} 18. Rd1 {[%clk 0:00:00]}  Ng6 {[%clk 0:00:00]} 19. g4 {[%clk 0:00:00]}  fxg4 {[%clk 0:00:00]} 20. Bxe4 {[%clk 0:00:00]}  Ra7 {[%clk 0:00:00]} 21. Bxg6 {[%clk 0:00:00]}  hxg6 {[%clk 0:00:00]} 22. Qxg6 {[%clk 0:00:00]}  Qe8 {[%clk 0:00:00]} 23. Qxe8 {[%clk 0:00:00]}  Rxe8 {[%clk 0:00:00]} 24. O-O {[%clk 0:00:00]}  Be5 {[%clk 0:00:00]} 25. Kg2 {[%clk 0:00:00]}  Rh7 {[%clk 0:00:00]} 26. Rh1 {[%clk 0:00:00]}  Rf8 {[%clk 0:00:00]} 27. Nf1 {[%clk 0:00:00]}  Rhf7 {[%clk 0:00:00]} 28. f4 {[%clk 0:00:00]}  gxf3+ {[%clk 0:00:00]} 29. Kf2 {[%clk 0:00:00]}  a5 {[%clk 0:00:00]} 30. Nfe3 {[%clk 0:00:00]}  Kh7 {[%clk 0:00:00]} 31. Rdg1 {[%clk 0:00:00]}  b4 {[%clk 0:00:00]} 32. Rg5 {[%clk 0:00:00]}  bxc3 {[%clk 0:00:00]} 33. bxc3 {[%clk 0:00:00]}  Rg7 {[%clk 0:00:00]} 34. Rhg1 {[%clk 0:00:00]}  Rxg5 {[%clk 0:00:00]} 35. Rxg5 {[%clk 0:00:00]}  Kh6 {[%clk 0:00:00]} 36. Rg1 {[%clk 0:00:00]}  Rf7 {[%clk 0:00:00]} 37. Ng4+ {[%clk 0:00:00]}  Bxg4 {[%clk 0:00:00]} 38. Rxg4 {[%clk 0:00:00]}  Kh5 {[%clk 0:00:00]} 39. h3 {[%clk 0:00:00]}  Rb7 {[%clk 0:00:00]} 40. Kxf3 {[%clk 0:00:00]}  Rb2 {[%clk 0:00:00]} 41. Rg2 {[%clk 0:00:00]}  Rb1 {[%clk 0:00:00]} 42. Rd2 {[%clk 0:00:00]}  Rh1 {[%clk 0:00:00]} 43. Ke4 {[%clk 0:00:00]}  Kg6 {[%clk 0:00:00]} 44. Rg2+ {[%clk 0:00:00]}  Kf7 {[%clk 0:00:00]} 45. Rf2+ {[%clk 0:00:00]}  Ke6 {[%clk 0:00:00]} 46. Nc7+ {[%clk 0:00:00]}  Kd7 {[%clk 0:00:00]} 47. Rf7+ {[%clk 0:00:00]}  Kc6 {[%clk 0:00:00]} 48. c4 {[%clk 0:00:00]}  Rxh3 {[%clk 0:00:00]} 49. Nd5 {[%clk 0:00:00]}  Ra3 {[%clk 0:00:00]} 50. Rc7# {[%clk 0:00:00]} 1-0


[Site "https://www.chess.com"]

[Event "Titled Tuesday Blitz August 16 Early 2022"]
[White "Drygalov, Sergey"]
[Black "Koniahli, Malek."]
[WhiteFideId "24171743"]
[BlackFideId "7603495"]
[WhiteElo "2523"]
[BlackElo "2097"]
[Result "1-0"]
[Round "05"]
[TimeControl "180+1"]
[Date "2022.08.16"]
[WhiteClock "0:00:59"]
[BlackClock "0:01:26"]

1. d4 {[%clk 0:03:00]}  d5 {[%clk 0:02:59]} 2. Nf3 {[%clk 0:03:00]}  Nf6 {[%clk 0:02:59]} 3. c4 {[%clk 0:03:00]}  c6 {[%clk 0:02:59]} 4. Nc3 {[%clk 0:02:57]}  a6 {[%clk 0:03:00]} 5. e3 {[%clk 0:02:57]}  Bf5 {[%clk 0:02:59]} 6. Ne5 {[%clk 0:02:57]}  Nbd7 {[%clk 0:02:55]} 7. Qb3 {[%clk 0:02:57]}  Qc7 {[%clk 0:02:55]} 8. cxd5 {[%clk 0:02:57]}  Nxe5 {[%clk 0:02:55]} 9. dxe5 {[%clk 0:02:57]}  Nxd5 {[%clk 0:02:56]} 10. Nxd5 {[%clk 0:02:56]}  cxd5 {[%clk 0:02:57]} 11. Bd2 {[%clk 0:02:52]}  e6 {[%clk 0:02:57]} 12. Rc1 {[%clk 0:02:47]}  Qd7 {[%clk 0:02:56]} 13. Ba5 {[%clk 0:02:43]}  Rc8 {[%clk 0:02:52]} 14. Rxc8+ {[%clk 0:02:25]}  Qxc8 {[%clk 0:02:53]} 15. Kd2 {[%clk 0:02:26]}  Be7 {[%clk 0:02:50]} 16. Be2 {[%clk 0:02:23]}  Qc5 {[%clk 0:02:05]} 17. Qa4+ {[%clk 0:02:15]}  b5 {[%clk 0:02:02]} 18. Qb3 {[%clk 0:02:12]}  d4 {[%clk 0:01:49]} 19. Rc1 {[%clk 0:01:38]}  dxe3+ {[%clk 0:01:48]} 20. fxe3 {[%clk 0:01:37]}  Qd5+ {[%clk 0:01:43]} 21. Qxd5 {[%clk 0:01:18]}  exd5 {[%clk 0:01:44]} 22. Rc6 {[%clk 0:01:18]}  Bg5 {[%clk 0:01:40]} 23. Rxa6 {[%clk 0:01:01]}  d4 {[%clk 0:01:28]} 24. Ra8+ {[%clk 0:00:59]}  Kd7 {[%clk 0:01:28]} 25. Rxh8 {[%clk 0:00:59]}  Bxe3+ {[%clk 0:01:27]} 26. Kd1 {[%clk 0:00:59]}  d3 {[%clk 0:01:27]} 27. Bf3 {[%clk 0:01:00]}  Be6 {[%clk 0:01:26]} 28. Rd8+ {[%clk 0:00:59]} 1-0


[Site "https://www.chess.com"]

[Event "Titled Tuesday Blitz August 16 Early 2022"]
[White "Dubov, Daniil"]
[Black "Melikyan, Gnel"]
[WhiteFideId "24126055"]
[BlackFideId "54109990"]
[WhiteElo "2791"]
[BlackElo "1772"]
[Result "1-0"]
[Round "05"]
[TimeControl "180+1"]
[Date "2022.08.16"]
[WhiteClock "0:01:34"]
[BlackClock "0:00:23"]

1. e4 {[%clk 0:03:00]}  c5 {[%clk 0:02:59]} 2. Nf3 {[%clk 0:02:59]}  Nc6 {[%clk 0:02:57]} 3. Bb5 {[%clk 0:02:57]}  e6 {[%clk 0:02:54]} 4. O-O {[%clk 0:02:57]}  Nge7 {[%clk 0:02:53]} 5. Re1 {[%clk 0:02:55]}  a6 {[%clk 0:02:53]} 6. Bxc6 {[%clk 0:02:56]}  Nxc6 {[%clk 0:02:52]} 7. d4 {[%clk 0:02:57]}  cxd4 {[%clk 0:02:52]} 8. Nxd4 {[%clk 0:02:57]}  d6 {[%clk 0:02:46]} 9. Nxc6 {[%clk 0:02:54]}  bxc6 {[%clk 0:02:45]} 10. Qg4 {[%clk 0:02:53]}  e5 {[%clk 0:02:43]} 11. Qg3 {[%clk 0:02:53]}  Qf6 {[%clk 0:02:41]} 12. Nd2 {[%clk 0:02:42]}  Qg6 {[%clk 0:02:37]} 13. Nc4 {[%clk 0:02:41]}  Qxg3 {[%clk 0:02:34]} 14. hxg3 {[%clk 0:02:41]}  Be6 {[%clk 0:02:34]} 15. Na5 {[%clk 0:02:39]}  Kd7 {[%clk 0:02:31]} 16. Bd2 {[%clk 0:02:34]}  Be7 {[%clk 0:02:27]} 17. Rad1 {[%clk 0:02:34]}  Rhb8 {[%clk 0:02:23]} 18. b3 {[%clk 0:02:29]}  Bd8 {[%clk 0:02:18]} 19. c4 {[%clk 0:02:27]}  c5 {[%clk 0:01:57]} 20. Bc3 {[%clk 0:02:25]}  f6 {[%clk 0:01:54]} 21. Rd3 {[%clk 0:02:24]}  Rb6 {[%clk 0:01:24]} 22. Red1 {[%clk 0:02:09]}  Bc7 {[%clk 0:01:21]} 23. a3 {[%clk 0:01:52]}  Rab8 {[%clk 0:01:06]} 24. b4 {[%clk 0:01:50]}  cxb4 {[%clk 0:01:00]} 25. axb4 {[%clk 0:01:48]}  Rxb4 {[%clk 0:00:57]} 26. Bxb4 {[%clk 0:01:47]}  Rxb4 {[%clk 0:00:57]} 27. c5 {[%clk 0:01:37]}  Rxe4 {[%clk 0:00:34]} 28. Rxd6+ {[%clk 0:01:34]}  Bxd6 {[%clk 0:00:31]} 29. Rxd6+ {[%clk 0:01:34]}  Ke7 {[%clk 0:00:31]} 30. Nc6+ {[%clk 0:01:35]}  Ke8 {[%clk 0:00:23]} 31. Rxe6+ {[%clk 0:01:34]}  Kd7 {[%clk 0:00:23]} 32. Rd6+ {[%clk 0:01:35]}  Kc7 {[%clk 0:00:23]} 33. Nd8 {[%clk 0:01:34]} 1-0


[Site "https://www.chess.com"]

[Event "Titled Tuesday Blitz August 16 Early 2022"]
[White "Dushyant Sharma"]
[Black "Samunenkov, Ihor"]
[WhiteFideId "25065130"]
[BlackFideId "14187086"]
[WhiteElo "2133"]
[BlackElo "2441"]
[Result "0-1"]
[Round "05"]
[TimeControl "180+2"]
[Date "2022.08.18"]
[WhiteClock "0:00:00"]
[BlackClock "0:00:00"]

1. e4 {[%clk 0:00:00]}  c6 {[%clk 0:00:00]} 2. d4 {[%clk 0:00:00]}  d5 {[%clk 0:00:00]} 3. exd5 {[%clk 0:00:00]}  cxd5 {[%clk 0:00:00]} 4. Bd3 {[%clk 0:00:00]}  Nf6 {[%clk 0:00:00]} 5. c3 {[%clk 0:00:00]}  Bg4 {[%clk 0:00:00]} 6. Nf3 {[%clk 0:00:00]}  Nc6 {[%clk 0:00:00]} 7. O-O {[%clk 0:00:00]}  e6 {[%clk 0:00:00]} 8. Be3 {[%clk 0:00:00]}  Bd6 {[%clk 0:00:00]} 9. Nbd2 {[%clk 0:00:00]}  O-O {[%clk 0:00:00]} 10. Qc2 {[%clk 0:00:00]}  Rc8 {[%clk 0:00:00]} 11. a3 {[%clk 0:00:00]}  Ne7 {[%clk 0:00:00]} 12. Ne5 {[%clk 0:00:00]}  Bf5 {[%clk 0:00:00]} 13. f4 {[%clk 0:00:00]}  Bxd3 {[%clk 0:00:00]} 14. Qxd3 {[%clk 0:00:00]}  Nf5 {[%clk 0:00:00]} 15. Rae1 {[%clk 0:00:00]}  Bb8 {[%clk 0:00:00]} 16. Kh1 {[%clk 0:00:00]}  Nd6 {[%clk 0:00:00]} 17. Rf3 {[%clk 0:00:00]}  Nfe4 {[%clk 0:00:00]} 18. Rh3 {[%clk 0:00:00]}  f6 {[%clk 0:00:00]} 19. Ng4 {[%clk 0:00:00]}  b5 {[%clk 0:00:00]} 20. Nxe4 {[%clk 0:00:00]}  dxe4 {[%clk 0:00:00]} 21. Qe2 {[%clk 0:00:00]}  Nc4 {[%clk 0:00:00]} 22. Bc1 {[%clk 0:00:00]}  f5 {[%clk 0:00:00]} 23. Ne5 {[%clk 0:00:00]}  Bxe5 {[%clk 0:00:00]} 24. fxe5 {[%clk 0:00:00]}  Qd5 {[%clk 0:00:00]} 25. Rg3 {[%clk 0:00:00]}  Kh8 {[%clk 0:00:00]} 26. Qh5 {[%clk 0:00:00]}  f4 {[%clk 0:00:00]} 27. Rh3 {[%clk 0:00:00]}  h6 {[%clk 0:00:00]} 28. Qg6 {[%clk 0:00:00]}  Rf5 {[%clk 0:00:00]} 29. Rf1 {[%clk 0:00:00]}  e3 {[%clk 0:00:00]} 30. Rh4 {[%clk 0:00:00]}  e2 {[%clk 0:00:00]} 31. Rg1 {[%clk 0:00:00]}  Qe4 {[%clk 0:00:00]} 32. Re1 {[%clk 0:00:00]}  a5 {[%clk 0:00:00]} 33. Rxh6+ {[%clk 0:00:00]}  gxh6 {[%clk 0:00:00]} 34. Qxh6+ {[%clk 0:00:00]}  Kg8 {[%clk 0:00:00]} 35. Qxe6+ {[%clk 0:00:00]}  Kh7 {[%clk 0:00:00]} 36. Qxc8 {[%clk 0:00:00]}  f3 {[%clk 0:00:00]} 37. Qd7+ {[%clk 0:00:00]}  Kg8 {[%clk 0:00:00]} 38. Qe8+ {[%clk 0:00:00]}  Rf8 {[%clk 0:00:00]} 39. Qe6+ {[%clk 0:00:00]}  Rf7 {[%clk 0:00:00]} 40. Rg1 {[%clk 0:00:00]}  e1=Q {[%clk 0:00:00]} 41. Qe8+ {[%clk 0:00:00]}  Kg7 {[%clk 0:00:00]} 42. gxf3+ {[%clk 0:00:00]}  Qxg1+ {[%clk 0:00:00]} 43. Kxg1 {[%clk 0:00:00]}  Qe1+ {[%clk 0:00:00]} 44. Kg2 {[%clk 0:00:00]}  Qe2+ {[%clk 0:00:00]} 45. Kg3 {[%clk 0:00:00]}  Qxf3+ {[%clk 0:00:00]} 46. Kh4 {[%clk 0:00:00]}  Qe4+ {[%clk 0:00:00]} 47. Kg3 {[%clk 0:00:00]}  Qd3+ {[%clk 0:00:00]} 48. Kg2 {[%clk 0:00:00]}  Qg6+ {[%clk 0:00:00]} 49. Kh3 {[%clk 0:00:00]}  Rf3+ {[%clk 0:00:00]} 50. Kh4 {[%clk 0:00:00]}  Qxe8 {[%clk 0:00:00]} 0-1


[Site "https://www.chess.com"]

[Event "Titled Tuesday Blitz August 16 Early 2022"]
[White "Eynullayev, Atilla"]
[Black "Melikhov, Evgeny V."]
[WhiteFideId "13413570"]
[BlackFideId "4122046"]
[WhiteElo "1936"]
[BlackElo "1963"]
[Result "0-1"]
[Round "05"]
[TimeControl "180+2"]
[Date "2022.08.18"]
[WhiteClock "0:00:00"]
[BlackClock "0:00:00"]

1. e4 {[%clk 0:00:00]}  e5 {[%clk 0:00:00]} 2. Nf3 {[%clk 0:00:00]}  Nc6 {[%clk 0:00:00]} 3. Bb5 {[%clk 0:00:00]}  a6 {[%clk 0:00:00]} 4. Ba4 {[%clk 0:00:00]}  Nf6 {[%clk 0:00:00]} 5. O-O {[%clk 0:00:00]}  Nxe4 {[%clk 0:00:00]} 6. d4 {[%clk 0:00:00]}  b5 {[%clk 0:00:00]} 7. Bb3 {[%clk 0:00:00]}  d5 {[%clk 0:00:00]} 8. dxe5 {[%clk 0:00:00]}  Be6 {[%clk 0:00:00]} 9. Be3 {[%clk 0:00:00]}  Be7 {[%clk 0:00:00]} 10. c3 {[%clk 0:00:00]}  O-O {[%clk 0:00:00]} 11. Nbd2 {[%clk 0:00:00]}  Qd7 {[%clk 0:00:00]} 12. Bc2 {[%clk 0:00:00]}  f5 {[%clk 0:00:00]} 13. exf6 {[%clk 0:00:00]}  Nxf6 {[%clk 0:00:00]} 14. Nb3 {[%clk 0:00:00]}  Bf5 {[%clk 0:00:00]} 15. Bxf5 {[%clk 0:00:00]}  Qxf5 {[%clk 0:00:00]} 16. Nfd4 {[%clk 0:00:00]}  Nxd4 {[%clk 0:00:00]} 17. Qxd4 {[%clk 0:00:00]}  c6 {[%clk 0:00:00]} 18. Qb6 {[%clk 0:00:00]}  Qd7 {[%clk 0:00:00]} 19. f3 {[%clk 0:00:00]}  Rfb8 {[%clk 0:00:00]} 20. Qd4 {[%clk 0:00:00]}  Bd6 {[%clk 0:00:00]} 21. Rae1 {[%clk 0:00:00]}  Re8 {[%clk 0:00:00]} 22. Bg5 {[%clk 0:00:00]}  Rxe1 {[%clk 0:00:00]} 23. Rxe1 {[%clk 0:00:00]}  Rf8 {[%clk 0:00:00]} 24. Nc5 {[%clk 0:00:00]}  Bxc5 {[%clk 0:00:00]} 25. Qxc5 {[%clk 0:00:00]}  h6 {[%clk 0:00:00]} 26. Re7 {[%clk 0:00:00]}  Qf5 {[%clk 0:00:00]} 27. Bc1 {[%clk 0:00:00]}  Qc2 {[%clk 0:00:00]} 28. Re1 {[%clk 0:00:00]}  Re8 {[%clk 0:00:00]} 29. Rxe8+ {[%clk 0:00:00]}  Nxe8 {[%clk 0:00:00]} 30. Qe3 {[%clk 0:00:00]}  Nf6 {[%clk 0:00:00]} 31. a3 {[%clk 0:00:00]}  Kh7 {[%clk 0:00:00]} 32. h4 {[%clk 0:00:00]}  c5 {[%clk 0:00:00]} 33. Qd2 {[%clk 0:00:00]}  Qxd2 {[%clk 0:00:00]} 34. Bxd2 {[%clk 0:00:00]}  h5 {[%clk 0:00:00]} 35. Kf2 {[%clk 0:00:00]}  Kg6 {[%clk 0:00:00]} 36. Be3 {[%clk 0:00:00]}  c4 {[%clk 0:00:00]} 37. Bd4 {[%clk 0:00:00]}  Nd7 {[%clk 0:00:00]} 38. g4 {[%clk 0:00:00]}  hxg4 {[%clk 0:00:00]} 39. fxg4 {[%clk 0:00:00]}  Nb8 {[%clk 0:00:00]} 40. Kf3 {[%clk 0:00:00]}  Nc6 {[%clk 0:00:00]} 41. Kf4 {[%clk 0:00:00]}  Nxd4 {[%clk 0:00:00]} 42. cxd4 {[%clk 0:00:00]}  a5 {[%clk 0:00:00]} 43. Ke5 {[%clk 0:00:00]}  b4 {[%clk 0:00:00]} 44. axb4 {[%clk 0:00:00]}  axb4 {[%clk 0:00:00]} 45. Kf4 {[%clk 0:00:00]}  c3 {[%clk 0:00:00]} 46. bxc3 {[%clk 0:00:00]}  b3 {[%clk 0:00:00]} 47. Ke5 {[%clk 0:00:00]}  b2 {[%clk 0:00:00]} 48. Kxd5 {[%clk 0:00:00]}  b1=Q {[%clk 0:00:00]} 49. c4 {[%clk 0:00:00]}  Qh1+ {[%clk 0:00:00]} 50. Kd6 {[%clk 0:00:00]}  Kf6 {[%clk 0:00:00]} 51. d5 {[%clk 0:00:00]}  Qxh4 {[%clk 0:00:00]} 52. c5 {[%clk 0:00:00]}  Qxg4 {[%clk 0:00:00]} 53. c6 {[%clk 0:00:00]}  Qc8 {[%clk 0:00:00]} 54. Kc5 {[%clk 0:00:00]}  Qc7 {[%clk 0:00:00]} 55. d6 {[%clk 0:00:00]}  Qa5+ {[%clk 0:00:00]} 56. Kd4 {[%clk 0:00:00]}  Ke6 {[%clk 0:00:00]} 0-1


[Site "https://www.chess.com"]

[Event "Titled Tuesday Blitz August 16 Early 2022"]
[White "Fernandez Hernandez, Gerardo"]
[Black "Kostiukov, Alexandr"]
[WhiteFideId "2207400"]
[BlackFideId "14108100"]
[WhiteElo "2169"]
[BlackElo "2202"]
[Result "0-1"]
[Round "05"]
[TimeControl "180+2"]
[Date "2022.08.18"]
[WhiteClock "0:00:00"]
[BlackClock "0:00:00"]

1. e4 {[%clk 0:00:00]}  c5 {[%clk 0:00:00]} 2. d3 {[%clk 0:00:00]}  g6 {[%clk 0:00:00]} 3. g3 {[%clk 0:00:00]}  Bg7 {[%clk 0:00:00]} 4. Bg2 {[%clk 0:00:00]}  Nc6 {[%clk 0:00:00]} 5. f4 {[%clk 0:00:00]}  e6 {[%clk 0:00:00]} 6. Nf3 {[%clk 0:00:00]}  Nge7 {[%clk 0:00:00]} 7. O-O {[%clk 0:00:00]}  O-O {[%clk 0:00:00]} 8. c3 {[%clk 0:00:00]}  d5 {[%clk 0:00:00]} 9. Be3 {[%clk 0:00:00]}  d4 {[%clk 0:00:00]} 10. Bf2 {[%clk 0:00:00]}  b6 {[%clk 0:00:00]} 11. e5 {[%clk 0:00:00]}  dxc3 {[%clk 0:00:00]} 12. bxc3 {[%clk 0:00:00]}  Ba6 {[%clk 0:00:00]} 13. c4 {[%clk 0:00:00]}  Qd7 {[%clk 0:00:00]} 14. Qe2 {[%clk 0:00:00]}  Rad8 {[%clk 0:00:00]} 15. Ne1 {[%clk 0:00:00]}  Nf5 {[%clk 0:00:00]} 16. Nc3 {[%clk 0:00:00]}  Nfd4 {[%clk 0:00:00]} 17. Qb2 {[%clk 0:00:00]}  f6 {[%clk 0:00:00]} 18. exf6 {[%clk 0:00:00]}  Bxf6 {[%clk 0:00:00]} 19. Kh1 {[%clk 0:00:00]}  Nf5 {[%clk 0:00:00]} 20. Qa3 {[%clk 0:00:00]}  Bb7 {[%clk 0:00:00]} 21. Rd1 {[%clk 0:00:00]}  Nb4 {[%clk 0:00:00]} 22. Ne4 {[%clk 0:00:00]}  Bg7 {[%clk 0:00:00]} 23. Qxa7 {[%clk 0:00:00]}  Rb8 {[%clk 0:00:00]} 24. Qa3 {[%clk 0:00:00]}  Ra8 {[%clk 0:00:00]} 25. Qb3 {[%clk 0:00:00]}  Rxa2 {[%clk 0:00:00]} 26. Ng5 {[%clk 0:00:00]}  Nd4 {[%clk 0:00:00]} 27. Qb1 {[%clk 0:00:00]}  Bc6 {[%clk 0:00:00]} 28. Ne4 {[%clk 0:00:00]}  Rfa8 {[%clk 0:00:00]} 29. Bh3 {[%clk 0:00:00]}  Nf5 {[%clk 0:00:00]} 0-1


[Site "https://www.chess.com"]

[Event "Titled Tuesday Blitz August 16 Early 2022"]
[White "Ginzburg, Yakov"]
[Black "Silva, Kevin Ranidu"]
[WhiteFideId "4157176"]
[BlackFideId "9935258"]
[WhiteElo "2265"]
[BlackElo "1626"]
[Result "0-1"]
[Round "05"]
[TimeControl "180+2"]
[Date "2022.08.18"]
[WhiteClock "0:00:00"]
[BlackClock "0:00:00"]

1. e4 {[%clk 0:00:00]}  e5 {[%clk 0:00:00]} 2. Nf3 {[%clk 0:00:00]}  Nc6 {[%clk 0:00:00]} 3. Bb5 {[%clk 0:00:00]}  a6 {[%clk 0:00:00]} 4. Bxc6 {[%clk 0:00:00]}  dxc6 {[%clk 0:00:00]} 5. O-O {[%clk 0:00:00]}  Bg4 {[%clk 0:00:00]} 6. h3 {[%clk 0:00:00]}  Bxf3 {[%clk 0:00:00]} 7. Qxf3 {[%clk 0:00:00]}  Nf6 {[%clk 0:00:00]} 8. d3 {[%clk 0:00:00]}  Bc5 {[%clk 0:00:00]} 9. Qg3 {[%clk 0:00:00]}  Qe7 {[%clk 0:00:00]} 10. Qxg7 {[%clk 0:00:00]}  Rg8 {[%clk 0:00:00]} 11. Qh6 {[%clk 0:00:00]}  Rg6 {[%clk 0:00:00]} 12. Qh4 {[%clk 0:00:00]}  O-O-O {[%clk 0:00:00]} 13. Kh1 {[%clk 0:00:00]}  h6 {[%clk 0:00:00]} 14. Be3 {[%clk 0:00:00]}  Rdg8 {[%clk 0:00:00]} 15. Rg1 {[%clk 0:00:00]}  Bxe3 {[%clk 0:00:00]} 16. fxe3 {[%clk 0:00:00]}  Qc5 {[%clk 0:00:00]} 17. Nc3 {[%clk 0:00:00]}  Qxe3 {[%clk 0:00:00]} 18. Raf1 {[%clk 0:00:00]}  Qg5 {[%clk 0:00:00]} 19. Qxg5 {[%clk 0:00:00]}  hxg5 {[%clk 0:00:00]} 20. g4 {[%clk 0:00:00]}  Kd7 {[%clk 0:00:00]} 21. Rg3 {[%clk 0:00:00]}  Ke6 {[%clk 0:00:00]} 22. Rgf3 {[%clk 0:00:00]}  Rh8 {[%clk 0:00:00]} 23. Kg2 {[%clk 0:00:00]}  Rh7 {[%clk 0:00:00]} 24. Ne2 {[%clk 0:00:00]}  c5 {[%clk 0:00:00]} 25. Nc3 {[%clk 0:00:00]}  c6 {[%clk 0:00:00]} 26. Rf5 {[%clk 0:00:00]}  Nd7 {[%clk 0:00:00]} 27. b3 {[%clk 0:00:00]}  f6 {[%clk 0:00:00]} 28. Nd1 {[%clk 0:00:00]}  Ke7 {[%clk 0:00:00]} 29. R5f3 {[%clk 0:00:00]}  Nf8 {[%clk 0:00:00]} 30. Ne3 {[%clk 0:00:00]}  Ne6 {[%clk 0:00:00]} 31. Nf5+ {[%clk 0:00:00]}  Kd7 {[%clk 0:00:00]} 32. Rh1 {[%clk 0:00:00]}  Nf4+ {[%clk 0:00:00]} 33. Kf2 {[%clk 0:00:00]}  Rg8 {[%clk 0:00:00]} 34. h4 {[%clk 0:00:00]}  gxh4 {[%clk 0:00:00]} 35. Rxh4 {[%clk 0:00:00]}  Rxh4 {[%clk 0:00:00]} 36. Nxh4 {[%clk 0:00:00]}  Rxg4 {[%clk 0:00:00]} 37. Nf5 {[%clk 0:00:00]}  Rg2+ {[%clk 0:00:00]} 38. Kf1 {[%clk 0:00:00]}  Rxc2 {[%clk 0:00:00]} 39. Rg3 {[%clk 0:00:00]}  Kc7 {[%clk 0:00:00]} 40. Rg7+ {[%clk 0:00:00]}  Kb8 {[%clk 0:00:00]} 41. Nd6 {[%clk 0:00:00]}  Nxd3 {[%clk 0:00:00]} 42. Rxb7+ {[%clk 0:00:00]}  Ka8 {[%clk 0:00:00]} 43. Rc7 {[%clk 0:00:00]}  c4 {[%clk 0:00:00]} 44. Rxc6 {[%clk 0:00:00]}  cxb3 {[%clk 0:00:00]} 45. Rxa6+ {[%clk 0:00:00]}  Kb8 {[%clk 0:00:00]} 46. axb3 {[%clk 0:00:00]}  Nc5 {[%clk 0:00:00]} 47. Rb6+ {[%clk 0:00:00]}  Kc7 {[%clk 0:00:00]} 48. Nc4 {[%clk 0:00:00]}  Rxc4 {[%clk 0:00:00]} 49. Rxf6 {[%clk 0:00:00]}  Rxe4 {[%clk 0:00:00]} 50. Rf7+ {[%clk 0:00:00]}  Kc6 {[%clk 0:00:00]} 51. Kf2 {[%clk 0:00:00]}  Nxb3 {[%clk 0:00:00]} 52. Rf6+ {[%clk 0:00:00]}  Kd5 {[%clk 0:00:00]} 53. Kf3 {[%clk 0:00:00]}  Nd4+ {[%clk 0:00:00]} 54. Kg3 {[%clk 0:00:00]}  Re3+ {[%clk 0:00:00]} 55. Kf2 {[%clk 0:00:00]}  Re4 {[%clk 0:00:00]} 56. Rf8 {[%clk 0:00:00]}  Rf4+ {[%clk 0:00:00]} 57. Rxf4 {[%clk 0:00:00]}  exf4 {[%clk 0:00:00]} 0-1


[Site "https://www.chess.com"]